{"text_format":"1","workbook":"xlsx","n_sheets":8,"sheets":["раздел0","1","2","3","4","5","6,7","проверка"],"not_rendered":{"charts":0,"images":0,"macros":1,"external_links":0,"defined_names":36,"comments":0,"pivot_tables":0},"unopened":[],"bounds":{"document_bytes":16777216,"sheet_cells":100000,"rows_first":2000,"rows_last":500,"rows_between":2000,"halvings":0,"cell_chars":16384,"cell_head_chars":4096},"cells_cut":0,"cells_raw":0,"read":"whole","date_system":"1900"}

{"sheet":"раздел0","index":0,"n_rows":32,"n_cols":141,"rows_kept":32,"cut":false,"hidden":false,"merged":[[30,0,30,12],[30,13,30,49],[30,50,30,85],[30,86,30,121],[30,122,30,154],[31,0,31,12],[31,13,31,49],[31,50,31,85],[31,86,31,121],[31,122,31,154],[24,47,24,151],[26,18,26,151],[28,0,29,12],[28,13,28,154],[29,13,29,49],[29,50,29,85],[29,86,29,121],[29,122,29,154],[21,125,22,148],[12,0,13,83],[12,84,13,116],[12,124,12,149],[14,84,21,116],[14,119,17,154],[17,1,17,4],[17,5,17,83],[18,126,18,128],[18,129,18,139],[18,140,18,143],[18,144,18,147],[19,126,19,128],[19,129,19,139],[19,140,19,143],[19,144,19,147],[9,77,9,79],[0,17,0,137],[2,17,2,137],[4,13,4,141],[6,17,6,137],[8,27,8,127]]}
[null,null,null,null,null,null,null,null,null,null,null,null,null,null,null,null,null,"ФЕДЕРАЛЬНОЕ СТАТИСТИЧЕСКОЕ НАБЛЮДЕНИЕ"]
[]
[null,null,null,null,null,null,null,null,null,null,null,null,null,null,null,null,null,"КОНФИДЕНЦИАЛЬНОСТЬ ГАРАНТИРУЕТСЯ ПОЛУЧАТЕЛЕМ ИНФОРМАЦИИ"]
[]
[null,null,null,null,null,null,null,null,null,null,null,null,null,"Нарушение порядка предоставления первичных статистических данных или несвоевременное предоставление этих данных,\nлибо предоставление недостоверных первичных статистических данных влечет ответственность, установленную\nКодексом Российской Федерации об административных правонарушениях"]
[]
[null,null,null,null,null,null,null,null,null,null,null,null,null,null,null,null,null,"ВОЗМОЖНО ПРЕДОСТАВЛЕНИЕ В ЭЛЕКТРОННОМ ВИДЕ"]
[]
[null,null,null,null,null,null,null,null,null,null,null,null,null,null,null,null,null,null,null,null,null,null,null,null,null,null,null,"СВЕДЕНИЯ ОБ ОСУЩЕСТВЛЕНИИ ДЕЯТЕЛЬНОСТИ ПО НАПРАВЛЕНИЯМ ДОПОЛНИТЕЛЬНЫХ\nОБЩЕОБРАЗОВАТЕЛЬНЫХ ПРОГРАММ"]
[null,null,null,null,null,null,null,null,null,null,null,null,null,null,null,null,null,null,null,null,null,null,null,null,null,null,null,null,null,null,null,null,null,null,null,null,null,null,null,null,null,null,null,null,null,null,null,null,null,null,null,null,null,null,null,null,null,null,null,null,null,null,null,null,null,null,null,null,null,null,null,null,null,null,null,null,"за 20","20",null,null," г."]
[]
[]
["Предоставляют:",null,null,null,null,null,null,null,null,null,null,null,null,null,null,null,null,null,null,null,null,null,null,null,null,null,null,null,null,null,null,null,null,null,null,null,null,null,null,null,null,null,null,null,null,null,null,null,null,null,null,null,null,null,null,null,null,null,null,null,null,null,null,null,null,null,null,null,null,null,null,null,null,null,null,null,null,null,null,null,null,null,null,null,"Сроки предоставления",null,null,null,null,null,null,null,null,null,null,null,null,null,null,null,null,null,null,null,null,null,null,null,null,null,null,null,null,null,null,null,null,null,null,null,null,null,null,null,"Форма № 1-ДОП"]
[]
[null,"юридические лица, осуществляющие образовательную деятельность по дополнительным",null,null,null,null,null,null,null,null,null,null,null,null,null,null,null,null,null,null,null,null,null,null,null,null,null,null,null,null,null,null,null,null,null,null,null,null,null,null,null,null,null,null,null,null,null,null,null,null,null,null,null,null,null,null,null,null,null,null,null,null,null,null,null,null,null,null,null,null,null,null,null,null,null,null,null,null,null,null,null,null,null,null,"5 февраля\nпосле отчетного периода",null,null,null,null,null,null,null,null,null,null,null,null,null,null,null,null,null,null,null,null,null,null,null,null,null,null,null,null,null,null,null,null,null,null,"Приказ Росстата:\nОб утверждении формы\nот 30.07.2020 № 424\nО внесении изменений (при наличии)"]
[null,"общеобразовательным программам для детей на основании соответствующей лицензии:"]
[]
[null,"-",null,null,null,"территориальному органу Росстата в субъекте Российской Федерации"]
[null,null,null,null,null,"по установленному им адресу",null,null,null,null,null,null,null,null,null,null,null,null,null,null,null,null,null,null,null,null,null,null,null,null,null,null,null,null,null,null,null,null,null,null,null,null,null,null,null,null,null,null,null,null,null,null,null,null,null,null,null,null,null,null,null,null,null,null,null,null,null,null,null,null,null,null,null,null,null,null,null,null,null,null,null,null,null,null,null,null,null,null,null,null,null,null,null,null,null,null,null,null,null,null,null,null,null,null,null,null,null,null,null,null,null,null,null,null,null,null,null,null,null,null,null,null,null,null,null,null,"от ",null,null,null,null,null,null,null,null,null,null,null,null,null,"№"]
[null,null,null,null,null,null,null,null,null,null,null,null,null,null,null,null,null,null,null,null,null,null,null,null,null,null,null,null,null,null,null,null,null,null,null,null,null,null,null,null,null,null,null,null,null,null,null,null,null,null,null,null,null,null,null,null,null,null,null,null,null,null,null,null,null,null,null,null,null,null,null,null,null,null,null,null,null,null,null,null,null,null,null,null,null,null,null,null,null,null,null,null,null,null,null,null,null,null,null,null,null,null,null,null,null,null,null,null,null,null,null,null,null,null,null,null,null,null,null,null,null,null,null,null,null,null,"от ",null,null,null,null,null,null,null,null,null,null,null,null,null,"№"]
[]
[null,null,null,null,null,null,null,null,null,null,null,null,null,null,null,null,null,null,null,null,null,null,null,null,null,null,null,null,null,null,null,null,null,null,null,null,null,null,null,null,null,null,null,null,null,null,null,null,null,null,null,null,null,null,null,null,null,null,null,null,null,null,null,null,null,null,null,null,null,null,null,null,null,null,null,null,null,null,null,null,null,null,null,null,null,null,null,null,null,null,null,null,null,null,null,null,null,null,null,null,null,null,null,null,null,null,null,null,null,null,null,null,null,null,null,null,null,null,null,null,null,null,null,null,null,"Годовая"]
[]
[]
[null,"Наименование отчитывающейся организации",null,null,null,null,null,null,null,null,null,null,null,null,null,null,null,null,null,null,null,null,null,null,null,null,null,null,null,null,null,null,null,null,null,null,null,null,null,null,null,null,null,null,null,null,null,"Поворинский"]
[]
[null,"Почтовый адрес"]
[]
["Код\nформы\nпо ОКУД",null,null,null,null,null,null,null,null,null,null,null,null,"Код"]
[null,null,null,null,null,null,null,null,null,null,null,null,null,"отчитывающейся организации\nпо ОКПО",null,null,null,null,null,null,null,null,null,null,null,null,null,null,null,null,null,null,null,null,null,null,null,null,null,null,null,null,null,null,null,null,null,null,null,null,"Код типа поселения:\n(\"1\" - город и поселок городского\nтипа;\n\"2\" - сельская местность)"]
[1,null,null,null,null,null,null,null,null,null,null,null,null,2,null,null,null,null,null,null,null,null,null,null,null,null,null,null,null,null,null,null,null,null,null,null,null,null,null,null,null,null,null,null,null,null,null,null,null,null,3,null,null,null,null,null,null,null,null,null,null,null,null,null,null,null,null,null,null,null,null,null,null,null,null,null,null,null,null,null,null,null,null,null,null,null,4,null,null,null,null,null,null,null,null,null,null,null,null,null,null,null,null,null,null,null,null,null,null,null,null,null,null,null,null,null,null,null,null,null,null,null,5]
["0609500"]

{"sheet":"1","index":1,"n_rows":21,"n_cols":8,"rows_kept":21,"cut":false,"hidden":false,"merged":[[1,0,1,7],[2,0,2,7],[5,4,5,5],[5,6,5,7],[5,3,6,3],[5,2,6,2],[5,1,6,1],[5,0,6,0]]}
[]
["      Раздел 1. Сведения о численности обучающихся, человек"]
[]
[]
[]
["наименование показателей","№ строки","численность обучающихся, всего, человек","из них (из гр.3) девочки","из гр.3 - дети с ограниченными созможностями здоровья",null,"из гр.3 - дети-инвалиды"]
[null,null,null,null,"всего","из них (из гр.5) девочки","всего","из них (из гр.7) девочки"]
[1,2,3,4,5,6,7,8]
["Направления дополнительных общеобразовательных программ:                                                     техническое",1,416,182,5,1,3,2]
["естественнонаучное",2,720,366,11,5,8,5]
["туристско-краеведческое",3,232,109,2,0,0,0]
["социально-педагогическое",4,904,464,18,9,7,2]
["в области искусств:",null,0,0,0,0,0,0]
["по общеразвивающим программам",5,1368,834,16,4,5,2]
["по предпрофессиональным программам",6,0,0,0,0,0,0]
["в области физической культуры и спорта:",null,0,0,0,0,0,0]
["по общеразвивающим программам",7,877,412,14,5,3,1]
["по предпрофессиональным программам",8,148,26,0,0,0,0]
["Форма обучения:",null,0,0,0,0,0,0]
["сетевая",9,556,"X",7,"X",0,"X"]
["электронная и дистанционная",10,1,"X",1,"X",1,"X"]

{"sheet":"2","index":2,"n_rows":17,"n_cols":18,"rows_kept":17,"cut":false,"hidden":false,"merged":[[3,0,4,0],[3,1,4,1],[3,2,3,17],[0,0,0,17],[1,0,1,17],[2,0,2,17]]}
["Раздел 2. Возрастной состав обучающихся, человек"]
[]
[]
["Наименование показателей","N строки","Число полных лет по состоянию на 1 января 2021 года"]
[null,null,"менее 3",3,4,5,6,7,8,9,10,11,12,13,14,15,16,17]
[1,2,3,4,5,6,7,8,9,10,11,12,13,14,15,16,17,18]
["Направления дополнительных общеобразовательных программ:"]
["техническое",11,0,28,27,47,45,1,0,14,67,37,66,41,39,4,0,0]
["естественнонаучное",12,0,28,27,59,75,36,69,66,57,81,45,40,72,50,15,0]
["туристско-краеведческое",13,0,0,0,0,0,2,30,29,3,7,35,42,50,18,16,0]
["социально-педагогическое",14,0,0,0,37,88,141,89,77,69,63,74,102,65,66,23,10]
["в области искусств:",null,0,0,0,0,0,0,0,0,0,0,0,0,0,0,0,0]
["по общеразвивающим программам",15,0,28,27,54,64,130,204,129,182,154,120,123,59,54,27,13]
["по предпрофессиональным программам",16,0,0,0,0,0,0,0,0,0,0,0,0,0,0,0,0]
["в области физической культуры и спорта:",null,0,0,0,0,0,0,0,0,0,0,0,0,0,0,0,0]
["по общеразвивающим программам",17,0,0,0,0,1,16,47,55,71,125,143,120,128,108,52,11]
["по предпрофессиональным программам",18,0,0,0,0,0,3,9,8,20,21,29,19,13,12,10,4]

{"sheet":"3","index":3,"n_rows":18,"n_cols":6,"rows_kept":18,"cut":false,"hidden":false,"merged":[[4,0,5,0],[4,1,5,1],[4,2,4,4],[4,5,5,5],[0,0,0,5],[1,0,1,5],[2,0,2,5],[3,0,3,5]]}
["Раздел 3. Распределение численности обучающихся по источникам финансирования, человек"]
[]
[]
[]
["Наименование показателей","N строки","Обучались за счет бюджетных ассигнований:",null,null,"По договорам об оказании платных образовательных услуг"]
[null,null,"федерального бюджета","бюджета субъекта Российской Федерации","местного бюджета"]
[1,2,3,4,5,6]
["Направления дополнительных общеобразовательных программ:"]
["техническое",19,0,396,20,0]
["естественнонаучное",20,0,696,24,0]
["туристско-краеведческое",21,0,232,0,0]
["социально-педагогическое",22,0,562,342,0]
["в области искусств:",null,0,0,0,0]
["по общеразвивающим программам",23,0,852,516,0]
["по предпрофессиональным программам",24,0,0,0,0]
["в области физической культуры и спорта:",null,0,0,0,0]
["по общеразвивающим программам",25,0,817,60,0]
["по предпрофессиональным программам",26,0,0,148,0]

{"sheet":"4","index":4,"n_rows":13,"n_cols":8,"rows_kept":13,"cut":false,"hidden":false,"merged":[[5,0,5,7],[6,0,6,7],[7,0,8,0],[7,1,8,1],[7,2,8,2],[7,3,7,6],[7,7,8,7],[0,0,0,7],[1,0,1,7],[2,0,2,7],[3,0,3,7],[4,0,4,7]]}
[]
[]
["Раздел 4. Распределение педагогических работников по уровню образования и полу, человек"]
["(без внешних совместителей и работавших по договорам гражданско-правового характера)"]
["             "]
[]
[]
["Наименование показателей","N строки","Всего работников","из них (из гр. 3) имеют образование:",null,null,null,"Кроме того, численность внешних совместителей"]
[null,null,null,"высшее","из них (из гр. 4) педагогическое","среднее профессиональное образование по программам подготовки специалистов среднего звена","из них (из гр. 6) педагогическое"]
[1,2,3,4,5,6,7,8]
["Численность педагогических работников, осуществляющих образовательную деятельность \nпо дополнительным общеобразовательным программам - всего",27,47,37,33,10,2,4]
["из них педагогов дополнительного образования",28,21,16,15,5,0,0]
["Из стр. 27 - женщины",29,36,31,28,5,0,1]

{"sheet":"5","index":5,"n_rows":10,"n_cols":12,"rows_kept":10,"cut":false,"hidden":false,"merged":[[4,0,5,0],[4,1,5,1],[4,2,4,11],[0,0,0,11],[1,0,1,11],[2,0,2,11],[3,0,3,11]]}
["Раздел 5. Распределение педагогических работников по возрасту, человек"]
["           (без внешних совместителей и работавших по договорам гражданско-правового характера)"]
[]
[]
["Наименование показателей","N строки","Число полных лет по состоянию на 1 января 2021 года"]
[null,null,"моложе 25","25 - 29","30 - 34","35 - 39","40 - 44","45 - 49","50 - 54","55 - 59","60 - 64","65 и старше"]
[1,2,3,4,5,6,7,8,9,10,11,12]
["Численность педагогических работников, осуществляющих образовательную деятельность \nпо дополнительным общеобразовательным программам - всего",30,1,2,4,3,5,5,11,8,5,3]
["из них педагогов дополнительного образования",31,1,1,2,1,4,0,4,4,2,2]
["Из стр. 30 - женщины",32,1,2,3,3,5,3,9,7,2,1]

{"sheet":"6,7","index":6,"n_rows":33,"n_cols":8,"rows_kept":33,"cut":false,"hidden":false,"merged":[[0,0,0,2],[1,0,1,2],[12,0,12,2],[13,0,13,2],[24,4,24,5],[26,1,26,2],[26,4,26,5],[27,1,27,2],[27,4,27,5],[24,7,24,8],[25,1,25,2],[25,4,25,5],[25,7,25,8]]}
["Раздел 6. Затраты на внедрение и использование цифровых технологий в отчетном году, тысяч рублей\n(с одним десятичным знаком)"]
["(раздел заполняет только организация дополнительного образования детей, являющаяся самостоятельным юридическим лицом (с учетом обособленных подразделений (в том числе филиалов), у которой основной вид экономической деятельности по ОКВЭД2 ОК 029-2014 (КДЕС Ред. 2) \"Образование дополнительное\" (коды 85.4; 85.41; 85.41.1; 85.41.2; 85.41.9)"]
[]
["Наименование показателя","№ строки","Всего"]
[1,2,3]
["Затраты на внедрение и использование цифровых технологий - всего (сумма строк 34 и 35)",33,52.099999999999994]
["в том числе:",null,0]
["внутренние затраты на внедрение и использование цифровых технологий",34,52.099999999999994]
["внешние затраты на внедрение и использование цифровых технологий ",35,0]
["из строки 33\nзатраты на продукты и услуги в области информационной безопасности",36,0]
[]
[]
["Раздел 7. Источники финансирования внутренних затрат на внедрение и использование цифровых технологий, тысяч рублей (с одним десятичным знаком)"]
["(раздел заполняет только организация дополнительного образования детей, являющаяся самостоятельным юридическим лицом (с учетом обособленных подразделений (в том числе филиалов), у которой основной вид экономической деятельности по ОКВЭД2 ОК 029-2014 (КДЕС Ред. 2) \"Образование дополнительное\" (коды 85.4; 85.41; 85.41.1; 85.41.2; 85.41.9)"]
[]
["Наименование показателя","№ строки",0]
[1,2,6]
["Внутренние затраты на внедрение и использование цифровых технологий (сумма строк 38, 39, 40)",37,52.099999999999994]
["в том числе по источникам финансирования:\nсобственные средства организации",38,0]
["средства бюджетов всех уровней",39,52.099999999999994]
["прочие привлеченные средства",40,0]
[]
[]
[]
["Должностное лицо, ответственное за предоставление первичных статистических данных (лицо, уполномоченное предоставлять первичные статистические  данные от имени    юридического лица) "]
["   ","(должность)",null,null,"(ФИО)",null,null,"(подпись)"]
[]
[null,"(номер контактного телефона)",null,null,"дата заполнения документа"]
[null,null,0]
[null,null,0]
[null,null,0]
[null,null,0]
[null,null,0]

{"sheet":"проверка","index":7,"n_rows":113,"n_cols":2,"rows_kept":113,"cut":false,"hidden":true,"merged":[[5,1,5,14],[18,1,18,14],[19,1,19,14],[20,1,20,14],[21,1,21,14],[0,1,0,4],[2,1,2,14],[3,1,3,14],[4,1,4,14],[17,1,17,14],[6,1,6,14],[7,1,7,14],[8,1,8,14],[9,1,9,14],[10,1,10,14],[11,1,11,14],[12,1,12,14],[13,1,13,14],[14,1,14,14],[15,1,15,14],[16,1,16,14],[27,1,27,14],[28,1,28,14],[29,1,29,14],[30,1,30,14],[31,1,31,14],[22,1,22,14],[23,1,23,14],[24,1,24,14],[25,1,25,14],[26,1,26,14],[42,1,42,14],[43,1,43,14],[44,1,44,14],[37,1,37,14],[38,1,38,14],[39,1,39,14],[40,1,40,14],[41,1,41,14],[32,1,32,14],[33,1,33,14],[34,1,34,14],[35,1,35,14],[36,1,36,14],[58,1,58,14],[59,1,59,14],[60,1,60,14],[61,1,61,14],[62,1,62,14],[45,1,45,14],[46,1,46,14],[47,1,47,14],[48,1,48,14],[49,1,49,14],[50,1,50,14],[51,1,51,14],[52,1,52,14],[53,1,53,14],[54,1,54,14],[55,1,55,14],[56,1,56,14],[57,1,57,14],[68,1,68,14],[69,1,69,14],[70,1,70,14],[71,1,71,14],[72,1,72,14],[63,1,63,14],[64,1,64,14],[65,1,65,14],[66,1,66,14],[67,1,67,14],[78,1,78,14],[79,1,79,14],[80,1,80,14],[81,1,81,14],[82,1,82,14],[73,1,73,14],[74,1,74,14],[75,1,75,14],[76,1,76,14],[77,1,77,14],[88,1,88,14],[89,1,89,14],[90,1,90,14],[91,1,91,14],[92,1,92,14],[83,1,83,14],[84,1,84,14],[85,1,85,14],[86,1,86,14],[87,1,87,14],[98,1,98,14],[99,1,99,14],[100,1,100,14],[101,1,101,14],[102,1,102,14],[93,1,93,14],[94,1,94,14],[95,1,95,14],[96,1,96,14],[97,1,97,14],[108,1,108,14],[109,1,109,14],[110,1,110,14],[111,1,111,14],[112,1,112,14],[103,1,103,14],[104,1,104,14],[105,1,105,14],[106,1,106,14],[107,1,107,14]]}
[{"$f":"COUNTIF(A4:A430,\"ОШИБКА\")","v":0},"количество ошибок!!!!!!"]
[]
[{"$f":"IF('1'!C9>='1'!D9,\"ПРАВИЛЬНО\",\"ОШИБКА\")","v":"ПРАВИЛЬНО"}," в подразделе 1.1 гр.3>=гр.4 по строке 01"]
[{"$f":"IF('1'!C10>='1'!D10,\"ПРАВИЛЬНО\",\"ОШИБКА\")","v":"ПРАВИЛЬНО"}," в подразделе 1.1 гр.3>=гр.4 по строке 02"]
[{"$f":"IF('1'!C11>='1'!D11,\"ПРАВИЛЬНО\",\"ОШИБКА\")","v":"ПРАВИЛЬНО"}," в подразделе 1.1 гр.3>=гр.4 по строке 03"]
[{"$f":"IF('1'!C12>='1'!D12,\"ПРАВИЛЬНО\",\"ОШИБКА\")","v":"ПРАВИЛЬНО"}," в подразделе 1.1 гр.3>=гр.4 по строке 04"]
[{"$f":"IF('1'!C14>='1'!D14,\"ПРАВИЛЬНО\",\"ОШИБКА\")","v":"ПРАВИЛЬНО"}," в подразделе 1.1 гр.3>=гр.4 по строке 05"]
[{"$f":"IF('1'!C15>='1'!D15,\"ПРАВИЛЬНО\",\"ОШИБКА\")","v":"ПРАВИЛЬНО"}," в подразделе 1.1 гр.3>=гр.4 по строке 06"]
[{"$f":"IF('1'!C17>='1'!D17,\"ПРАВИЛЬНО\",\"ОШИБКА\")","v":"ПРАВИЛЬНО"}," в подразделе 1.1 гр.3>=гр.4 по строке 07"]
[{"$f":"IF('1'!C18>='1'!D18,\"ПРАВИЛЬНО\",\"ОШИБКА\")","v":"ПРАВИЛЬНО"}," в подразделе 1.1 гр.3>=гр.4 по строке 08"]
[{"$f":"IF('1'!#REF!>='1'!#REF!,\"ПРАВИЛЬНО\",\"ОШИБКА\")","v":{"$error":"#REF!"}}," в подразделе 1.1 гр.3>=гр.4 по строке 09"]
[{"$f":"IF('1'!C9>='1'!E9,\"ПРАВИЛЬНО\",\"ОШИБКА\")","v":"ПРАВИЛЬНО"}," в подразделе 1.1 гр.3>=гр5 по строке 01"]
[{"$f":"IF('1'!C10>='1'!E10,\"ПРАВИЛЬНО\",\"ОШИБКА\")","v":"ПРАВИЛЬНО"}," в подразделе 1.1 гр.3>=гр5 по строке 02"]
[{"$f":"IF('1'!C11>='1'!E11,\"ПРАВИЛЬНО\",\"ОШИБКА\")","v":"ПРАВИЛЬНО"}," в подразделе 1.1 гр.3>=гр5 по строке 03"]
[{"$f":"IF('1'!C12>='1'!E12,\"ПРАВИЛЬНО\",\"ОШИБКА\")","v":"ПРАВИЛЬНО"}," в подразделе 1.1 гр.3>=гр5 по строке 04"]
[{"$f":"IF('1'!C14>='1'!E14,\"ПРАВИЛЬНО\",\"ОШИБКА\")","v":"ПРАВИЛЬНО"}," в подразделе 1.1 гр.3>=гр5 по строке 05"]
[{"$f":"IF('1'!C15>='1'!E15,\"ПРАВИЛЬНО\",\"ОШИБКА\")","v":"ПРАВИЛЬНО"}," в подразделе 1.1 гр.3>=гр5 по строке 06"]
[{"$f":"IF('1'!C17>='1'!E17,\"ПРАВИЛЬНО\",\"ОШИБКА\")","v":"ПРАВИЛЬНО"}," в подразделе 1.1 гр.3>=гр5 по строке 07"]
[{"$f":"IF('1'!C18>='1'!E18,\"ПРАВИЛЬНО\",\"ОШИБКА\")","v":"ПРАВИЛЬНО"}," в подразделе 1.1 гр.3>=гр5 по строке 08"]
[{"$f":"IF('1'!#REF!>='1'!#REF!,\"ПРАВИЛЬНО\",\"ОШИБКА\")","v":{"$error":"#REF!"}}," в подразделе 1.1 гр.3>=гр5 по строке 09"]
[{"$f":"IF('1'!C20>='1'!E20,\"ПРАВИЛЬНО\",\"ОШИБКА\")","v":"ПРАВИЛЬНО"}," в подразделе 1.1 гр.3>=гр5 по строке 10"]
[{"$f":"IF('1'!C21>='1'!E21,\"ПРАВИЛЬНО\",\"ОШИБКА\")","v":"ПРАВИЛЬНО"}," в подразделе 1.1 гр.5>=гр.5 по строке 11"]
[{"$f":"IF('1'!E9>='1'!F9,\"ПРАВИЛЬНО\",\"ОШИБКА\")","v":"ПРАВИЛЬНО"}," в подразделе 1.1 гр.3>=гр.6 по строке 01"]
[{"$f":"IF('1'!E10>='1'!F10,\"ПРАВИЛЬНО\",\"ОШИБКА\")","v":"ПРАВИЛЬНО"}," в подразделе 1.1 гр.3>=гр.6 по строке 02"]
[{"$f":"IF('1'!E11>='1'!F11,\"ПРАВИЛЬНО\",\"ОШИБКА\")","v":"ПРАВИЛЬНО"}," в подразделе 1.1 гр.3>=гр.6 по строке 03"]
[{"$f":"IF('1'!E12>='1'!F12,\"ПРАВИЛЬНО\",\"ОШИБКА\")","v":"ПРАВИЛЬНО"}," в подразделе 1.1 гр.3>=гр.6 по строке 04"]
[{"$f":"IF('1'!E14>='1'!F14,\"ПРАВИЛЬНО\",\"ОШИБКА\")","v":"ПРАВИЛЬНО"}," в подразделе 1.1 гр.3>=гр.6 по строке 05"]
[{"$f":"IF('1'!E15>='1'!F15,\"ПРАВИЛЬНО\",\"ОШИБКА\")","v":"ПРАВИЛЬНО"}," в подразделе 1.1 гр.3>=гр.6 по строке 06"]
[{"$f":"IF('1'!E17>='1'!F17,\"ПРАВИЛЬНО\",\"ОШИБКА\")","v":"ПРАВИЛЬНО"}," в подразделе 1.1 гр.3>=гр.6 по строке 07"]
[{"$f":"IF('1'!E18>='1'!F18,\"ПРАВИЛЬНО\",\"ОШИБКА\")","v":"ПРАВИЛЬНО"}," в подразделе 1.1 гр.3>=гр.6 по строке 08"]
[{"$f":"IF('1'!#REF!>='1'!#REF!,\"ПРАВИЛЬНО\",\"ОШИБКА\")","v":{"$error":"#REF!"}}," в подразделе 1.1 гр.3>=гр.6 по строке 09"]
[{"$f":"IF('1'!C9>='1'!G9,\"ПРАВИЛЬНО\",\"ОШИБКА\")","v":"ПРАВИЛЬНО"}," в подразделе 1.1 гр.3>=гр.7 по строке 01"]
[{"$f":"IF('1'!C10>='1'!G10,\"ПРАВИЛЬНО\",\"ОШИБКА\")","v":"ПРАВИЛЬНО"}," в подразделе 1.1 гр.3>=гр.7 по строке 02"]
[{"$f":"IF('1'!C11>='1'!G11,\"ПРАВИЛЬНО\",\"ОШИБКА\")","v":"ПРАВИЛЬНО"}," в подразделе 1.1 гр.3>=гр.7 по строке 03"]
[{"$f":"IF('1'!C12>='1'!G12,\"ПРАВИЛЬНО\",\"ОШИБКА\")","v":"ПРАВИЛЬНО"}," в подразделе 1.1 гр.3>=гр.7 по строке 04"]
[{"$f":"IF('1'!C14>='1'!G14,\"ПРАВИЛЬНО\",\"ОШИБКА\")","v":"ПРАВИЛЬНО"}," в подразделе 1.1 гр.3>=гр.7 по строке 05"]
[{"$f":"IF('1'!C15>='1'!G15,\"ПРАВИЛЬНО\",\"ОШИБКА\")","v":"ПРАВИЛЬНО"}," в подразделе 1.1 гр.3>=гр.7 по строке 06"]
[{"$f":"IF('1'!C17>='1'!G17,\"ПРАВИЛЬНО\",\"ОШИБКА\")","v":"ПРАВИЛЬНО"}," в подразделе 1.1 гр.3>=гр.7 по строке 07"]
[{"$f":"IF('1'!C18>='1'!G18,\"ПРАВИЛЬНО\",\"ОШИБКА\")","v":"ПРАВИЛЬНО"}," в подразделе 1.1 гр.3>=гр.7 по строке 08"]
[{"$f":"IF('1'!#REF!>='1'!#REF!,\"ПРАВИЛЬНО\",\"ОШИБКА\")","v":{"$error":"#REF!"}}," в подразделе 1.1 гр.3>=гр.7 по строке 09"]
[{"$f":"IF('1'!C20>='1'!G20,\"ПРАВИЛЬНО\",\"ОШИБКА\")","v":"ПРАВИЛЬНО"}," в подразделе 1.1 гр.3>=гр.7 по строке 10"]
[{"$f":"IF('1'!C21>='1'!G21,\"ПРАВИЛЬНО\",\"ОШИБКА\")","v":"ПРАВИЛЬНО"}," в подразделе 1.1 гр.3>=гр.7 по строке 11"]
[{"$f":"IF('1'!G9>='1'!H9,\"ПРАВИЛЬНО\",\"ОШИБКА\")","v":"ПРАВИЛЬНО"}," в подразделе 1.1 гр.7>=гр.8 по строке 01"]
[{"$f":"IF('1'!G10>='1'!H10,\"ПРАВИЛЬНО\",\"ОШИБКА\")","v":"ПРАВИЛЬНО"}," в подразделе 1.1 гр.7>=гр.8 по строке 02"]
[{"$f":"IF('1'!G11>='1'!H11,\"ПРАВИЛЬНО\",\"ОШИБКА\")","v":"ПРАВИЛЬНО"}," в подразделе 1.1 гр.7>=гр.8 по строке 03"]
[{"$f":"IF('1'!G12>='1'!H12,\"ПРАВИЛЬНО\",\"ОШИБКА\")","v":"ПРАВИЛЬНО"}," в подразделе 1.1 гр.7>=гр.8 по строке 04"]
[{"$f":"IF('1'!G14>='1'!H14,\"ПРАВИЛЬНО\",\"ОШИБКА\")","v":"ПРАВИЛЬНО"}," в подразделе 1.1 гр.7>=гр.8 по строке 05"]
[{"$f":"IF('1'!G15>='1'!H15,\"ПРАВИЛЬНО\",\"ОШИБКА\")","v":"ПРАВИЛЬНО"}," в подразделе 1.1 гр.7>=гр.8 по строке 06"]
[{"$f":"IF('1'!G17>='1'!H17,\"ПРАВИЛЬНО\",\"ОШИБКА\")","v":"ПРАВИЛЬНО"}," в подразделе 1.1 гр.7>=гр.8 по строке 07"]
[{"$f":"IF('1'!G18>='1'!H18,\"ПРАВИЛЬНО\",\"ОШИБКА\")","v":"ПРАВИЛЬНО"}," в подразделе 1.1 гр.7>=гр.8 по строке 08"]
[{"$f":"IF('1'!#REF!>='1'!#REF!,\"ПРАВИЛЬНО\",\"ОШИБКА\")","v":{"$error":"#REF!"}}," в подразделе 1.1 гр.7>=гр.8 по строке 09"]
[{"$f":"IF('1'!C9=SUM('2'!C8:R8),\"ПРАВИЛЬНО\",\"ОШИБКА\")","v":"ПРАВИЛЬНО"}," в подразделе 1.2 сумма граф 3-18>=гр.3 по строке 01 подраздела 1.1"]
[{"$f":"IF('1'!C10=SUM('2'!C9:R9),\"ПРАВИЛЬНО\",\"ОШИБКА\")","v":"ПРАВИЛЬНО"}," в подразделе 1.2 сумма граф 3-18>=гр.3 по строке 02 подраздела 1.1"]
[{"$f":"IF('1'!C11=SUM('2'!C10:R10),\"ПРАВИЛЬНО\",\"ОШИБКА\")","v":"ПРАВИЛЬНО"}," в подразделе 1.2 сумма граф 3-18>=гр.3 по строке 03 подраздела 1.1"]
[{"$f":"IF('1'!C12=SUM('2'!C11:R11),\"ПРАВИЛЬНО\",\"ОШИБКА\")","v":"ПРАВИЛЬНО"}," в подразделе 1.2 сумма граф 3-18>=гр.3 по строке 04 подраздела 1.1"]
[{"$f":"IF('1'!C14=SUM('2'!C13:R13),\"ПРАВИЛЬНО\",\"ОШИБКА\")","v":"ПРАВИЛЬНО"}," в подразделе 1.2 сумма граф 3-18>=гр.3 по строке 05 подраздела 1.1"]
[{"$f":"IF('1'!C15=SUM('2'!C14:R14),\"ПРАВИЛЬНО\",\"ОШИБКА\")","v":"ПРАВИЛЬНО"}," в подразделе 1.2 сумма граф 3-18>=гр.3 по строке 06 подраздела 1.1"]
[{"$f":"IF('1'!C17=SUM('2'!C16:R16),\"ПРАВИЛЬНО\",\"ОШИБКА\")","v":"ПРАВИЛЬНО"}," в подразделе 1.2 сумма граф 3-18>=гр.3 по строке 07 подраздела 1.1"]
[{"$f":"IF('1'!C18=SUM('2'!C17:R17),\"ПРАВИЛЬНО\",\"ОШИБКА\")","v":"ПРАВИЛЬНО"}," в подразделе 1.2 сумма граф 3-18>=гр.3 по строке 08 подраздела 1.1"]
[{"$f":"IF('1'!#REF!=SUM('2'!#REF!),\"ПРАВИЛЬНО\",\"ОШИБКА\")","v":{"$error":"#REF!"}}," в подразделе 1.2 сумма граф 3-18>=гр.3 по строке 09 подраздела 1.1"]
[{"$f":"IF('1'!C9=SUM('3'!C9:F9),\"ПРАВИЛЬНО\",\"ОШИБКА\")","v":"ПРАВИЛЬНО"}," в разделе 2 сумма граф 3-6>=гр.3 по строке 01 подраздела 1.1"]
[{"$f":"IF('1'!C10=SUM('3'!C10:F10),\"ПРАВИЛЬНО\",\"ОШИБКА\")","v":"ПРАВИЛЬНО"}," в разделе 2 сумма граф 3-6>=гр.3 по строке 02 подраздела 1.1"]
[{"$f":"IF('1'!C11=SUM('3'!C11:F11),\"ПРАВИЛЬНО\",\"ОШИБКА\")","v":"ПРАВИЛЬНО"}," в разделе 2 сумма граф 3-6>=гр.3 по строке 03 подраздела 1.1"]
[{"$f":"IF('1'!C12=SUM('3'!C12:F12),\"ПРАВИЛЬНО\",\"ОШИБКА\")","v":"ПРАВИЛЬНО"}," в разделе 2 сумма граф 3-6>=гр.3 по строке 04 подраздела 1.1"]
[{"$f":"IF('1'!C14=SUM('3'!C14:F14),\"ПРАВИЛЬНО\",\"ОШИБКА\")","v":"ПРАВИЛЬНО"}," в разделе 2 сумма граф 3-6>=гр.3 по строке 05 подраздела 1.1"]
[{"$f":"IF('1'!C15=SUM('3'!C15:F15),\"ПРАВИЛЬНО\",\"ОШИБКА\")","v":"ПРАВИЛЬНО"}," в разделе 2 сумма граф 3-6>=гр.3 по строке 06 подраздела 1.1"]
[{"$f":"IF('1'!C17=SUM('3'!C17:F17),\"ПРАВИЛЬНО\",\"ОШИБКА\")","v":"ПРАВИЛЬНО"}," в разделе 2 сумма граф 3-6>=гр.3 по строке 07 подраздела 1.1"]
[{"$f":"IF('1'!C18=SUM('3'!C18:F18),\"ПРАВИЛЬНО\",\"ОШИБКА\")","v":"ПРАВИЛЬНО"}," в разделе 2 сумма граф 3-6>=гр.3 по строке 08 подраздела 1.1"]
[{"$f":"IF('1'!#REF!=SUM('3'!#REF!),\"ПРАВИЛЬНО\",\"ОШИБКА\")","v":{"$error":"#REF!"}}," в разделе 2 сумма граф 3-6>=гр.3 по строке 09 подраздела 1.1"]
[{"$f":"IF('4'!C11>=('4'!D11+'4'!F11),\"ПРАВИЛЬНО\",\"ОШИБКА\")","v":"ПРАВИЛЬНО"}," в подразделе 3.1 гр.3 >= сумме граф 4,6 по строке 01"]
[{"$f":"IF('4'!C12>=('4'!D12+'4'!F12),\"ПРАВИЛЬНО\",\"ОШИБКА\")","v":"ПРАВИЛЬНО"}," в подразделе 3.1 гр.3 >= сумме граф 4,6 по строке 02"]
[{"$f":"IF('4'!C13>=('4'!D13+'4'!F13),\"ПРАВИЛЬНО\",\"ОШИБКА\")","v":"ПРАВИЛЬНО"}," в подразделе 3.1 гр.3 >= сумме граф 4,6 по строке 03"]
[{"$f":"IF('4'!D11>='4'!E11,\"ПРАВИЛЬНО\",\"ОШИБКА\")","v":"ПРАВИЛЬНО"}," в подразделе 3.1 гр.4 >= гр. 5 по строке 01"]
[{"$f":"IF('4'!D12>='4'!E12,\"ПРАВИЛЬНО\",\"ОШИБКА\")","v":"ПРАВИЛЬНО"}," в подразделе 3.1 гр.4 >= гр. 5 по строке 02"]
[{"$f":"IF('4'!D13>='4'!E13,\"ПРАВИЛЬНО\",\"ОШИБКА\")","v":"ПРАВИЛЬНО"}," в подразделе 3.1 гр.4 >= гр. 5 по строке 03"]
[{"$f":"IF('4'!F11>='4'!G11,\"ПРАВИЛЬНО\",\"ОШИБКА\")","v":"ПРАВИЛЬНО"}," в подразделе 3.1 гр.6 >= гр. 7 по строке 01"]
[{"$f":"IF('4'!F12>='4'!G12,\"ПРАВИЛЬНО\",\"ОШИБКА\")","v":"ПРАВИЛЬНО"}," в подразделе 3.1 гр.6 >= гр. 7 по строке 02"]
[{"$f":"IF('4'!F13>='4'!G13,\"ПРАВИЛЬНО\",\"ОШИБКА\")","v":"ПРАВИЛЬНО"}," в подразделе 3.1 гр.6 >= гр. 7 по строке 03"]
[{"$f":"IF('4'!C11>='4'!C12,\"ПРАВИЛЬНО\",\"ОШИБКА\")","v":"ПРАВИЛЬНО"}," в подразделе 3.1 стр. 01 >= стр. 02 по графе 3"]
[{"$f":"IF('4'!D11>='4'!D12,\"ПРАВИЛЬНО\",\"ОШИБКА\")","v":"ПРАВИЛЬНО"}," в подразделе 3.1 стр. 01 >= стр. 02 по графе 4"]
[{"$f":"IF('4'!E11>='4'!E12,\"ПРАВИЛЬНО\",\"ОШИБКА\")","v":"ПРАВИЛЬНО"}," в подразделе 3.1 стр. 01 >= стр. 02 по графе 5"]
[{"$f":"IF('4'!F11>='4'!F12,\"ПРАВИЛЬНО\",\"ОШИБКА\")","v":"ПРАВИЛЬНО"}," в подразделе 3.1 стр. 01 >= стр. 02 по графе 6"]
[{"$f":"IF('4'!G11>='4'!G12,\"ПРАВИЛЬНО\",\"ОШИБКА\")","v":"ПРАВИЛЬНО"}," в подразделе 3.1 стр. 01 >= стр. 02 по графе 7"]
[{"$f":"IF('4'!H11>='4'!H12,\"ПРАВИЛЬНО\",\"ОШИБКА\")","v":"ПРАВИЛЬНО"}," в подразделе 3.1 стр. 01 >= стр. 02 по графе 8"]
[{"$f":"IF('4'!C11>='4'!C13,\"ПРАВИЛЬНО\",\"ОШИБКА\")","v":"ПРАВИЛЬНО"}," в подразделе 3.1 стр. 01 >= стр. 03 по графе 3"]
[{"$f":"IF('4'!D11>='4'!D13,\"ПРАВИЛЬНО\",\"ОШИБКА\")","v":"ПРАВИЛЬНО"}," в подразделе 3.1 стр. 01 >= стр. 03 по графе 4"]
[{"$f":"IF('4'!E11>='4'!E13,\"ПРАВИЛЬНО\",\"ОШИБКА\")","v":"ПРАВИЛЬНО"}," в подразделе 3.1 стр. 01 >= стр. 03 по графе 5"]
[{"$f":"IF('4'!F11>='4'!F13,\"ПРАВИЛЬНО\",\"ОШИБКА\")","v":"ПРАВИЛЬНО"}," в подразделе 3.1 стр. 01 >= стр. 03 по графе 6"]
[{"$f":"IF('4'!G11>='4'!G13,\"ПРАВИЛЬНО\",\"ОШИБКА\")","v":"ПРАВИЛЬНО"}," в подразделе 3.1 стр. 01 >= стр. 03 по графе 7"]
[{"$f":"IF('4'!H11>='4'!H13,\"ПРАВИЛЬНО\",\"ОШИБКА\")","v":"ПРАВИЛЬНО"}," в подразделе 3.1 стр. 01 >= стр. 03 по графе 8"]
[{"$f":"IF('5'!C8>='5'!C9,\"ПРАВИЛЬНО\",\"ОШИБКА\")","v":"ПРАВИЛЬНО"}," в подразделе 3.2 стр. 01 >= стр. 02 по графе 3"]
[{"$f":"IF('5'!D8>='5'!D9,\"ПРАВИЛЬНО\",\"ОШИБКА\")","v":"ПРАВИЛЬНО"}," в подразделе 3.2 стр. 01 >= стр. 02 по графе 4"]
[{"$f":"IF('5'!E8>='5'!E9,\"ПРАВИЛЬНО\",\"ОШИБКА\")","v":"ПРАВИЛЬНО"}," в подразделе 3.2 стр. 01 >= стр. 02 по графе 5"]
[{"$f":"IF('5'!F8>='5'!F9,\"ПРАВИЛЬНО\",\"ОШИБКА\")","v":"ПРАВИЛЬНО"}," в подразделе 3.2 стр. 01 >= стр. 02 по графе 6"]
[{"$f":"IF('5'!G8>='5'!G9,\"ПРАВИЛЬНО\",\"ОШИБКА\")","v":"ПРАВИЛЬНО"}," в подразделе 3.2 стр. 01 >= стр. 02 по графе 7"]
[{"$f":"IF('5'!H8>='5'!H9,\"ПРАВИЛЬНО\",\"ОШИБКА\")","v":"ПРАВИЛЬНО"}," в подразделе 3.2 стр. 01 >= стр. 02 по графе 8"]
[{"$f":"IF('5'!I8>='5'!I9,\"ПРАВИЛЬНО\",\"ОШИБКА\")","v":"ПРАВИЛЬНО"}," в подразделе 3.2 стр. 01 >= стр. 02 по графе 9"]
[{"$f":"IF('5'!J8>='5'!J9,\"ПРАВИЛЬНО\",\"ОШИБКА\")","v":"ПРАВИЛЬНО"}," в подразделе 3.2 стр. 01 >= стр. 02 по графе 10"]
[{"$f":"IF('5'!K8>='5'!K9,\"ПРАВИЛЬНО\",\"ОШИБКА\")","v":"ПРАВИЛЬНО"}," в подразделе 3.2 стр. 01 >= стр. 02 по графе 11"]
[{"$f":"IF('5'!L8>='5'!L9,\"ПРАВИЛЬНО\",\"ОШИБКА\")","v":"ПРАВИЛЬНО"}," в подразделе 3.2 стр. 01 >= стр. 02 по графе 12"]
[{"$f":"IF('5'!C8>='5'!C10,\"ПРАВИЛЬНО\",\"ОШИБКА\")","v":"ПРАВИЛЬНО"}," в подразделе 3.2 стр. 01 >= стр. 03 по графе 3"]
[{"$f":"IF('5'!D8>='5'!D10,\"ПРАВИЛЬНО\",\"ОШИБКА\")","v":"ПРАВИЛЬНО"}," в подразделе 3.2 стр. 01 >= стр. 03 по графе 4"]
[{"$f":"IF('5'!E8>='5'!E10,\"ПРАВИЛЬНО\",\"ОШИБКА\")","v":"ПРАВИЛЬНО"}," в подразделе 3.2 стр. 01 >= стр. 03 по графе 5"]
[{"$f":"IF('5'!F8>='5'!F10,\"ПРАВИЛЬНО\",\"ОШИБКА\")","v":"ПРАВИЛЬНО"}," в подразделе 3.2 стр. 01 >= стр. 03 по графе 6"]
[{"$f":"IF('5'!G8>='5'!G10,\"ПРАВИЛЬНО\",\"ОШИБКА\")","v":"ПРАВИЛЬНО"}," в подразделе 3.2 стр. 01 >= стр. 03 по графе 7"]
[{"$f":"IF('5'!H8>='5'!H10,\"ПРАВИЛЬНО\",\"ОШИБКА\")","v":"ПРАВИЛЬНО"}," в подразделе 3.2 стр. 01 >= стр. 03 по графе 8"]
[{"$f":"IF('5'!I8>='5'!I10,\"ПРАВИЛЬНО\",\"ОШИБКА\")","v":"ПРАВИЛЬНО"}," в подразделе 3.2 стр. 01 >= стр. 03 по графе 9"]
[{"$f":"IF('5'!J8>='5'!J10,\"ПРАВИЛЬНО\",\"ОШИБКА\")","v":"ПРАВИЛЬНО"}," в подразделе 3.2 стр. 01 >= стр. 03 по графе 10"]
[{"$f":"IF('5'!K8>='5'!K10,\"ПРАВИЛЬНО\",\"ОШИБКА\")","v":"ПРАВИЛЬНО"}," в подразделе 3.2 стр. 01 >= стр. 03 по графе 11"]
[{"$f":"IF('5'!L8>='5'!L10,\"ПРАВИЛЬНО\",\"ОШИБКА\")","v":"ПРАВИЛЬНО"}," в подразделе 3.2 стр. 01 >= стр. 03 по графе 12"]
[{"$f":"IF('4'!C11=SUM('5'!C8:L8),\"ПРАВИЛЬНО\",\"ОШИБКА\")","v":"ПРАВИЛЬНО"},"в подразделе 3.2 сумма граф 3-12 = гр.3 подраздела 3.1 по строке 01"]
[{"$f":"IF('4'!C12=SUM('5'!C9:L9),\"ПРАВИЛЬНО\",\"ОШИБКА\")","v":"ПРАВИЛЬНО"},"в подразделе 3.2 сумма граф 3-12 = гр.3 подраздела 3.1 по строке 02"]
[{"$f":"IF('4'!C13=SUM('5'!C10:L10),\"ПРАВИЛЬНО\",\"ОШИБКА\")","v":"ПРАВИЛЬНО"},"в подразделе 3.2 сумма граф 3-12 = гр.3 подраздела 3.1 по строке 03"]